Workbook

Sheet 세입`세출 총괄표
A1: 2016년 예천군노인복지관 1차 추경 세입 · 세출 총괄표
A2: (단위 : 천원)
A3: 세 입 | G3: 세 출
A4: 관 | B4: 항 | C4: 목 | D4: 당초 | E4: 추경 | F4: 증감 | G4: 관 | H4: 항 | I4: 목 | J4: 당초 | K4: 추경 | L4: 증감
A5: 총계 | D5: =D6+D9+D13+D16+D21+D24 -> 1,069,705 | E5: =E6+E9+E13+E16+E20+E24 -> 1,061,303 | F5: =E5-D5 -> -8,402 | G5: 총계 | J5: =J6+J28+J33+J53 -> 1,069,705 | K5: =K6+K28+K33+K53 -> 1,061,303 | L5: =L6+L28+L33+L53 -> -8,402
A6: 사업수입 | B6: 소계 | D6: =D7 -> 33,800 | E6: =E7 -> 33,400 | F6: =E6-D6 -> -400 | G6: 사무비 | H6: 소계 | J6: =J7+J15+J21 -> 424,052 | K6: =K7+K15+K21 -> 424,130 | L6: =K6-J6 -> 78
B7: 사업수입 | C7: 계 | D7: =D8 -> 33,800 | E7: =E8 -> 33,400 | F7: -400 | H7: 인건비 | I7: 계 | J7: =J8+J9+J10+J11+J13+J14 -> 359,013 | K7: =K8+K9+K10+K11+K13+K14 -> 360,190 | L7: 1,178
C8: 이용자부담금 | D8: 33,800 | E8: 33,400 | F8: -400 | I8: 급여 | J8: 245,093 | K8: 245,101 | L8: 7
A9: 보조금 수입 | B9: 소계 | D9: =D10 -> 955,449 | E9: =E10 -> 933,183 | F9: -22,266 | I9: 일용잡급 | K9: 0 | L9: 0
B10: 보조금 수입 | C10: 계 | D10: =SUM(D11:D12) -> 955,449 | E10: =SUM(E11:E12) -> 933,183 | F10: -22,266 | I10: 제수당 | J10: 37,760 | K10: 38,930 | L10: 1,170
C11: 경상보조금수입 | D11: 955,449 | E11: 933,183 | F11: -22,266 | I11: 퇴직적립금 | J11: 25,186 | K11: 25,186 | L11: 0
C12: 기타보조금수입 | F12: 0
A13: 후원금수입 | B13: 소계 | D13: =D14 -> 37,072 | E13: =E14 -> 28,946 | F13: -8,126 | I13: 사회보험부담 | J13: 26,983 | K13: 26,983 | L13: =K13-J13 -> 0
B14: 후원금수입 | C14: 계 | D14: =D15 -> 37,072 | E14: =E15 -> 28,946 | F14: -8,126 | I14: 기타후생경비 | J14: 23,990 | K14: 23,991 | L14: =K14-J14 -> 410
C15: 후원금수입 | D15: 37,072 | E15: 28,946 | F15: -8,126 | H15: 업무추진비 | I15: 계 | J15: =SUM(J16:J20) -> 7,200 | K15: =SUM(K16:K20) -> 7,200 | L15: =SUM(L16:L20) -> 0
A16: 전입금수입 | B16: 소계 | D16: =D17 -> 4,200 | E16: =E17 -> 24,200 | F16: 20,000 | I16: 기관운영비 | J16: 2,400 | K16: 2,400 | L16: =K16-J16 -> 0
B17: 전입금수입 | C17: 계 | D17: =D18+D19 -> 4,200 | E17: =E18+E19 -> 24,200 | F17: 20,000 | I17: 직책보조비 | J17: 3,600 | K17: 3,600 | L17: =K17-J17 -> 0
C18: 법인전입금 | D18: 4,200 | E18: 4,200
C19: 기관전입금 | D19: 0 | E19: 20,000 | F19: 20,000 | I19: 회의비 | J19: 1,200 | K19: 1,200 | L19: =K19-J19 -> 0
A20: 이월금수입 | B20: 소계 | D20: =D21 -> 35,827 | E20: =E21 -> 38,242 | F20: 2,415
B21: 이월금수입 | C21: 계 | D21: =D22+D23 -> 35,827 | E21: =E22+E23 -> 38,242 | F21: 2,415 | H21: 운영비 | I21: 계 | J21: =SUM(J22:J27) -> 57,840 | K21: =SUM(K22:K27) -> 56,740 | L21: =SUM(L22:L27) -> -1,100
C22: 전년도(후원금)이월금수입 | D22: 26,200 | E22: 30,178 | F22: 3,978 | I22: 여 비 | J22: 4,200 | K22: 4,200 | L22: =K22-J22 -> 0
C23: 전년도이월금수입 | D23: 9,627 | E23: 8,064 | F23: -1,563 | I23: 수용비 및 수수료 | J23: 11,080 | K23: 9,880 | L23: -1,200
A24: 잡수입 | B24: 소계 | D24: =D25 -> 3,357 | E24: =E25 -> 3,332 | F24: -25 | I24: 공공요금 | J24: 19,920 | K24: 19,520 | L24: -400
B25: 잡수입 | C25: 계 | D25: =D26+D27 -> 3,357 | E25: =E26+E27 -> 3,332 | F25: -25 | I25: 제세공과금 | J25: 13,140 | K25: 13,840 | L25: 700
C26: 예금이자수입 | D26: 383 | E26: 432 | F26: 49 | I26: 차량비 | J26: 7,200 | K26: 7,000 | L26: -200
C27: 기타잡수입 | D27: 2,974 | E27: 2,900 | F27: -74 | I27: 연료비 | J27: 2,300 | K27: 2,300 | L27: 0
G28: 재산 조성비 | H28: 소계 | J28: =J30+J31+J32 -> 26,880 | K28: =K30+K31+K32 -> 43,980 | L28: =K28-J28 -> 17,100
H29: 시설비 | I29: 계 | J29: =SUM(J30:J32) -> 26,880 | K29: =SUM(K30:K32) -> 43,980 | L29: 17,100
I30: 시설비 | J30: 7,000 | K30: 20,000 | L30: 13,000
I31: 자산취득비 | J31: 10,280 | K31: 14,380 | L31: 4,100
I32: 시설장비유지비 | J32: 9,600 | K32: 9,600 | L32: 0
G33: 사업비 | H33: 소 계 | J33: =J34 -> 617,550 | K33: =K34 -> 592,437 | L33: -25,113
H34: 사업비 | I34: 계 | J34: =SUM(J35:J52) -> 617,550 | K34: =SUM(K35:K52) -> 592,437 | L34: =SUM(L35:L52) -> -25,113
I35: 정서생활지원사업 | J35: 560 | K35: 1,080 | L35: =K35-J35 -> 520
I36: 사회교육지원사업 | J36: 58,850 | K36: 54,450 | L36: =K36-J36 -> -4,400
I37: 건강생활지원사업 | J37: 3,800 | K37: 3,800 | L37: 0
I38: 재가복지사업 | J38: 1,650 | K38: 1,650 | L38: 0
I39: 경로증진사업 | J39: 6,000 | K39: 6,600 | L39: 600
I40: 사회참여사업 | J40: 2,280 | K40: 2,280 | L40: 0
I41: 연구개발사업 | J41: 9,400 | K41: 9,400 | L41: 0
I42: =[1]복지관세출!C140 -> 지역자원개발 및 연계사업 | J42: 2,500 | K42: 2,500 | L42: 0
I43: 연계사업 | J43: 2,200 | K43: 2,200 | L43: 0
I44: 아산노노케어사업 | J44: 7,250 | K44: 7,375 | L44: 125
I45: 경로당활성화사업 | J45: 56,392 | K45: 58,100 | L45: 1,708
I46: 관학연계이동복지관 | J46: 23,000 | K46: 23,000 | L46: 0
I47: 경로식당사업 | J47: 84,462 | K47: 82,867 | L47: -1,595
I48: 도시락배달사업 | J48: 27,425 | K48: 27,375 | L48: -50
I49: YOYO클럽활성화사업 | J49: 6,000 | K49: 6,000 | L49: 0
I50: YOYO공연예술단사업 | J50: 7,000 | K50: 7,000 | L50: 0
I51: 성인문해사업 | J51: 12,000 | K51: 12,000 | L51: 0
I52: 노인일자리사업 | J52: 306,781 | K52: 284,760 | L52: -22,021
G53: 잡지출 | H53: 소계 | J53: =J55 -> 1,223 | K53: =K55 -> 756 | L53: =K53-J53 -> -467
H54: 잡지출 | I54: 계 | J54: =J55 -> 1,223 | K54: =K55 -> 756 | L54: =K54-J54 -> -467
I55: 잡지출 | J55: 1,223 | K55: 756 | L55: =K55-J55 -> -467
